fUSD/lending_fUSD_20260123
["ID","MTS","AMOUNT","RATE_DAILY","PERIOD"]
[403122088,1769179839206,-500.0,0.00015622,2]
[403122090,1769179839215,-500.0,0.00015622,2]
[403122092,1769179839225,-500.0,0.00015622,2]
[403122094,1769179839235,-500.0,0.00015622,2]
[403122096,1769179839245,-500.0,0.00015622,2]
[403122098,1769179839255,-500.0,0.00015622,2]
[403122100,1769179839264,-500.0,0.00015622,2]
[403122102,1769179839274,-500.0,0.00015622,2]
[403122104,1769179839283,-151.0,0.00015622,2]
[403122106,1769179839292,-500.0,0.00015622,2]
[403122108,1769179839301,-151.0,0.00015622,2]
[403122110,1769179839310,-500.0,0.00015622,2]
[403122112,1769179839320,-151.0,0.00015622,2]
[403122114,1769179839330,-500.0,0.00015622,2]
[403122116,1769179839339,-151.0,0.00015622,2]
[403122118,1769179839349,-500.0,0.00015622,2]
[403122120,1769179839359,-151.0,0.00015622,2]
[403122122,1769179839368,-151.0,0.00015622,2]
[403122124,1769179839378,-151.0,0.00015622,2]
[403122126,1769179839387,-151.0,0.00015622,2]
[403122128,1769179839396,-151.0,0.00015622,2]
[403122130,1769179839406,-151.0,0.00015622,2]
[403122132,1769179839415,-151.0,0.00015622,2]
[403122134,1769179839424,-1019.98,0.00015622,2]
[403122136,1769179839433,-266.07,0.00015819,2]
[403122154,1769179839589,-1019.98,0.00015896,2]
[403122158,1769179839620,-1000.0,0.00015937,2]
[403122160,1769179839630,-3063.75945911,0.0001596,2]
[403122163,1769179839641,-500.0,0.00016006,2]
[403122165,1769179839650,-500.0,0.00016006,2]
[403122167,1769179839660,-500.0,0.00016006,2]
[403122169,1769179839669,-16156.07123726,0.00016006,2]
[403122171,1769179839678,-8101.79232037,0.00016006,2]
[403122173,1769179839688,-433.0,0.00016059,2]
[403122175,1769179839697,-873.32519601,0.00016074,2]
[403122177,1769179839706,-1396.23808959,0.00016083,2]
[403122179,1769179839716,-1019.98,0.0001617,2]
[403122181,1769179839725,-160.46063608,0.00016271,2]
[403122183,1769179839734,-430.20167202,0.00016318,2]
[403122185,1769179839744,-183.26,0.00016357,2]
[403122187,1769179839753,-500.0,0.00016438,2]
[403122189,1769179839762,-500.0,0.00016438,2]
[403122191,1769179839771,-500.0,0.00016438,2]
[403122193,1769179839780,-500.0,0.00016438,2]
[403122195,1769179839789,-500.0,0.00016438,2]
[403122197,1769179839798,-500.0,0.00016438,2]
[403122199,1769179839807,-500.0,0.00016438,2]
[403122201,1769179839816,-500.0,0.00016438,2]
[403122203,1769179839826,-500.0,0.00016438,2]
[403122205,1769179839835,-500.0,0.00016438,2]
[403122207,1769179839844,-500.0,0.00016438,2]
[403122209,1769179839853,-283.50204869,0.00016438,2]
[403122211,1769179839862,-500.0,0.00016438,2]
[403122213,1769179839871,-500.0,0.00016438,2]
[403122215,1769179839880,-500.0,0.00016438,2]
[403122216,1769179839889,-500.0,0.00016438,2]
[403122218,1769179839899,-500.0,0.00016438,2]
[403122221,1769179839908,-500.0,0.00016438,2]
[403122222,1769179839918,-500.0,0.00016438,2]
[403122225,1769179839927,-500.0,0.00016438,2]
[403122227,1769179839937,-500.0,0.00016438,2]
[403122228,1769179839946,-500.0,0.00016438,2]
[403122231,1769179839955,-500.0,0.00016438,2]
[403122233,1769179839965,-1019.98,0.00016444,2]
[403122235,1769179839974,-2528.64174004,0.00016461,2]
[403122236,1769179839983,-159.67,0.00016478,2]
[403122238,1769179839992,-16156.07123726,0.0001648,2]
[403122241,1769179840002,-8101.79232037,0.0001648,2]
[403122242,1769179840013,-2351.0,0.00016502,2]
[403122245,1769179840023,-688.58,0.00016615,2]
[403122247,1769179840033,-500.0,0.00016638,2]
[403122248,1769179840044,-500.0,0.00016638,2]
[403122250,1769179840053,-873.32519601,0.00016683,2]
[403122252,1769179840062,-541.1619087,0.00016703,2]
[403122255,1769179840072,-1019.98,0.00016718,2]
[403122257,1769179840081,-940.76966353,0.00016882,2]
[403122259,1769179840091,-221.37,0.00016889,2]
[403122261,1769179840100,-16156.07123726,0.00016953,2]
[403122263,1769179840111,-8101.79232037,0.00016953,2]
[403122265,1769179840121,-1019.98,0.00016992,2]
[403122267,1769179840130,-160.46063608,0.00017085,2]
[403122269,1769179840138,-1074.88818825,0.00017225,2]
[403122271,1769179840148,-1019.98,0.00017265,2]
[403122272,1769179840158,-16156.07123726,0.00017427,2]
[403122275,1769179840167,-8101.79232037,0.00017427,2]
[403122276,1769179840176,-715.0,0.0001748,2]
[403122278,1769179840186,-168.0,0.00017514,2]
[403122280,1769179840197,-1019.98315665,0.00017539,2]
[403122282,1769179840206,-615.0,0.00017604,2]
[403122284,1769179840216,-184.0,0.00017604,2]
[403122286,1769179840226,-1268.0,0.00017604,2]
[403122288,1769179840235,-567.0,0.00017604,2]
[403122290,1769179840244,-2441.0,0.00017604,2]
[403122292,1769179840254,-208.03774045,0.0001764,2]
[403122294,1769179840264,-836.0,0.0001768,2]
[403122296,1769179840273,-150.0,0.00017699,2]
[403122298,1769179840283,-150.0,0.00017699,2]
[403122300,1769179840292,-150.0,0.00017699,2]
[403122302,1769179840301,-150.0,0.00017699,2]
[403122304,1769179840309,-150.0,0.00017699,2]
[403122306,1769179840319,-150.0,0.00017699,2]
[403122308,1769179840329,-500.0,0.00017699,2]
[403122310,1769179840339,-150.0,0.00017699,2]
[403122312,1769179840348,-500.0,0.00017699,2]
[403122314,1769179840358,-500.0,0.00017699,2]
[403122316,1769179840367,-242.53853878,0.00017699,2]
[403122318,1769179840377,-150.0,0.00017699,2]
[403122320,1769179840386,-150.0,0.00017699,2]
[403122322,1769179840395,-500.0,0.00017699,2]
[403122324,1769179840405,-150.0,0.00017699,2]
[403122326,1769179840414,-150.0,0.00017699,2]
[403122328,1769179840423,-150.0,0.00017699,2]
[403122330,1769179840432,-150.0,0.00017699,2]
[403122332,1769179840442,-500.0,0.00017699,2]
[403122334,1769179840451,-250.42435544,0.00017738,2]
[403122336,1769179840460,-150.0,0.00017754,2]
[403122338,1769179840470,-204.0,0.00017754,2]
[403122340,1769179840479,-150.0,0.00017754,2]
[403122342,1769179840488,-150.0,0.00017754,2]
[403122344,1769179840498,-150.0,0.00017754,2]
[403122346,1769179840507,-150.0,0.00017754,2]
[403122348,1769179840516,-500.0,0.00017754,2]
[403122350,1769179840526,-500.0,0.00017754,2]
[403122352,1769179840535,-500.0,0.00017754,2]
[403122354,1769179840545,-150.0,0.00017754,2]
[403122356,1769179840555,-150.0,0.00017754,2]
[403122358,1769179840563,-500.0,0.00017754,2]
[403122360,1769179840573,-150.0,0.00017754,2]
[403122362,1769179840582,-150.0,0.00017754,2]
[403122364,1769179840591,-500.0,0.00017754,2]
[403122367,1769179840600,-715.0,0.00017768,2]
[403122369,1769179840610,-167.39298682,0.00017809,2]
[403122371,1769179840619,-150.0,0.00017809,2]
[403122373,1769179840628,-150.0,0.00017809,2]
[403122375,1769179840637,-163.79054865,0.00017809,2]
[403122377,1769179840646,-200.0,0.00017809,2]
[403122379,1769179840657,-489.97005786,0.00017809,2]
[403122381,1769179840667,-500.0,0.00017809,2]
[403122383,1769179840676,-200.0,0.00017809,2]
[403122385,1769179840685,-200.0,0.00017809,2]
[403122387,1769179840694,-150.0,0.00017809,2]
[403122389,1769179840703,-500.0,0.00017809,2]
[403122391,1769179840712,-200.0,0.00017809,2]
[403122393,1769179840722,-150.0,0.00017809,2]
[403122395,1769179840731,-500.0,0.00017809,2]
[403122397,1769179840741,-1031.02143,0.0001782,2]
[403122399,1769179840751,-1031.02144,0.0001782,2]
[403122401,1769179840760,-239.89164013,0.00017863,2]
[403122403,1769179840769,-250.0,0.00017863,2]
[403122405,1769179840779,-500.0,0.00017863,2]
[403122407,1769179840788,-150.0,0.00017863,2]
[403122409,1769179840798,-500.0,0.00017863,2]
[403122410,1769179840807,-200.0,0.00017863,2]
[403122411,1769179840816,-500.0,0.00017863,2]
[403122412,1769179840826,-715.0,0.00017868,2]
[403122413,1769179840835,-715.0,0.00017869,2]
[403122414,1769179840846,-500.0,0.00017873,2]
[403122415,1769179840855,-16156.07123726,0.000179,2]
[403122416,1769179840865,-160.46063608,0.000179,2]
[403122417,1769179840875,-430.20167202,0.000179,2]
[403122418,1769179840884,-8101.79232037,0.000179,2]
[403122419,1769179840894,-500.0,0.00017918,2]
[403122420,1769179840903,-150.0,0.00017918,2]
[403122421,1769179840912,-500.0,0.00017918,2]
[403122422,1769179840921,-314.98616488,0.00017918,2]
[403122424,1769179840930,-1028.0,0.0001793,2]
[403122426,1769179840939,-500.0,0.00017973,2]
[403122427,1769179840948,-210.66639761,0.00017973,2]
[403122430,1769179840957,-413.39557034,0.00017973,2]
[403122431,1769179840968,-150.0,0.00017973,2]
[403122433,1769179840978,-150.0,0.00017973,2]
[403122436,1769179840987,-500.0,0.00017989,2]
[403122438,1769179840996,-500.0,0.00017989,2]
[403122439,1769179841005,-500.0,0.00017989,2]
[403122441,1769179841014,-248.73822262,0.00017999,2]
[403122444,1769179841024,-641.34,0.00017999,2]
[403122446,1769179841033,-500.0,0.00017999,2]
[403122448,1769179841043,-500.0,0.00017999,2]
[403122449,1769179841052,-500.0,0.00017999,2]
[403122452,1769179841063,-500.0,0.00017999,2]
[403122454,1769179841072,-500.0,0.00017999,2]
[403122455,1769179841081,-500.0,0.00017999,2]
[403122458,1769179841091,-203.64,0.00017999,2]
[403122459,1769179841103,-500.0,0.00017999,2]
[403122462,1769179841115,-155.0,0.00017999,2]
[403122464,1769179841124,-478.56930455,0.00017999,2]
[403122465,1769179841133,-500.0,0.00017999,2]
[403122468,1769179841142,-545.04649337,0.00017999,2]
[403122470,1769179841152,-507.04733674,0.00017999,2]
[403122471,1769179841161,-500.0,0.00017999,2]
[403122474,1769179841170,-500.0,0.00017999,2]
[403122476,1769179841182,-500.0,0.00017999,2]
[403122478,1769179841191,-500.0,0.00017999,2]
[403122480,1769179841201,-509.45097785,0.00017999,2]
[403122482,1769179841210,-500.0,0.00017999,2]
[403122484,1769179841221,-530.9816303,0.00017999,2]
[403122486,1769179841230,-715.0,0.00018,2]
[403122488,1769179841240,-4927819.4696715,0.00018,2]
[403122490,1769179841249,-425790.05848894,0.00018,2]
[403122492,1769179841260,-3211789.61900803,0.00018,2]
[403122496,1769179841288,-8888.7,0.00018,2]
[403122499,1769179841304,-20809.26981631,0.00018,2]
[403122501,1769179841315,-4388.0,0.00018,2]
[403122503,1769179841331,-704.32627963,0.00018,2]
[403122506,1769179841342,-1289.12917697,0.00018,2]
[403122508,1769179841353,-2246.92405014,0.00018,2]
[403122510,1769179841365,-1687.20378709,0.00018,2]
[403122512,1769179841375,-2473.13499175,0.00018,2]
[403122515,1769179841389,-899.21,0.00018,2]
[403122517,1769179841400,-7210.19340804,0.00018,2]
[403122729,1769179843261,-379.84594958,0.00015824,2]
[403122730,1769179843271,-873.32519601,0.00017291,2]
[403122731,1769179843280,-7628.62885441,0.00018,2]
[403122732,1769179843291,-298179.20487928,0.00018,2]
[403122733,1769179843302,-1016.65390737,0.00018,2]
[403122734,1769179843313,-8601.06169002,0.00018,2]
[403122942,1769179845323,-500.0,0.00013738,2]
[403122944,1769179845333,-417.3613778,0.00013738,2]
[403122946,1769179845345,-82.6386222,0.00013738,2]
[403122948,1769179845355,-500.0,0.00013738,2]
[403122951,1769179845369,-200.43908393,0.000179,2]
[403122953,1769179845381,-654.62163137,0.000179,2]
[403122955,1769179845393,-18.26448071,0.000179,2]
[403122957,1769179845403,-500.0,0.00017989,2]
[403122959,1769179845413,-2.0665151,0.00017999,2]
[403122967,1769179845484,-497.9334849,0.00017999,2]
[403122969,1769179845494,-500.0,0.00017999,2]
[403122970,1769179845506,-500.0,0.00017999,2]
[403122971,1769179845518,-385013.97359226,0.00018,2]
[403122972,1769179845534,-60800.0,0.00018,2]
[403122973,1769179845546,-1684.32263665,0.00018,2]
[403122974,1769179845560,-977.9340396,0.00018,2]
[403122975,1769179845581,-441.835,0.00018,2]
[403122997,1769179845800,-999.68,0.00018,2]
[403123000,1769179845813,-1553.73338953,0.00018,2]
[403123002,1769179845825,-586.80897448,0.00018,2]
[403123040,1769179846146,-32735.90550006,0.00018,2]
[403123042,1769179846160,-78602.54842374,0.00018,2]
[403123045,1769179846175,-439.92685002,0.00018,2]
[403123047,1769179846187,-262.9,0.00018,2]
[403123050,1769179846201,-264.58499995,0.00018,2]
[403123069,1769179846375,-630.21210057,0.00018,2]
[403123071,1769179846387,-558.99868603,0.00018,2]
[403123082,1769179846482,-1523.28417236,0.00018,2]
[403123085,1769179846494,-8765.83089648,0.00018,2]
[403123736,1769179853034,477.2813404,0.00013638,2]
[403123746,1769179853125,309.27993099,0.00013638,2]
[403123756,1769179853210,500.0,0.00013638,2]
[403123768,1769179853318,588.29446279,0.00013638,2]
[403123884,1769179855064,-500.0,0.00013738,2]
[403123892,1769179855137,-500.0,0.00013738,2]
[403123901,1769179855216,-500.0,0.00013738,2]
[403125597,1769179872710,500.0,0.00013738,2]
[403125617,1769179872970,292.31386135,0.00013738,2]
[403127679,1769179893649,435.89165436,0.00013738,2]
[403127776,1769179894670,298.18754647,0.00013738,2]
[403128477,1769179902415,500.0,0.00013698,2]
[403128503,1769179902673,500.0,0.00013698,2]
[403128527,1769179902903,500.0,0.00013698,2]
[403128552,1769179903141,500.0,0.00014112,2]
[403129319,1769179911506,500.0,0.00013639,2]
[403129927,1769179917562,476.1098,0.00013639,2]
[403130488,1769179930041,500.0,0.00013698,2]
[403130489,1769179930273,500.0,0.00013698,2]
[403130490,1769179930554,500.0,0.00013698,2]
[403130491,1769179930786,500.0,0.00014112,2]
[403130492,1769179933912,8000.01,0.00013639,2]
[403130493,1769179933998,10000.01,0.00013639,2]
[403130494,1769179934078,10000.01,0.00013639,2]
[403130495,1769179934155,10000.01,0.00013639,2]
[403130496,1769179934234,10000.01,0.00013639,2]
[403130497,1769179934315,10000.01,0.00013639,2]
[403130498,1769179935430,500.0,0.000176,30]
[403130499,1769179936114,729.82374146,0.00013,2]
[403130500,1769179936159,500.0,0.00013,2]
[403130516,1769179981359,300.0,0.00013638,2]
[403130517,1769179987858,5790.0176,7.945e-05,2]
[403130518,1769180004829,509.63277244,0.00013539,2]
[403130519,1769180026021,3400.35962756,0.00013629,2]
[403130520,1769180026093,4933.43509849,0.00013629,2]
[403130521,1769180027909,491.53929173,0.00013638,2]
[403130522,1769180030235,300.78,0.000226,120]
[403130523,1769180036032,500.0,0.00013638,2]
[403130524,1769180036116,500.0,0.00013638,2]
[403130525,1769180036200,500.0,0.00013638,2]
[403130526,1769180036648,500.0,0.00013638,2]
[403130527,1769180036726,500.0,0.00013638,2]
[403130528,1769180036803,500.0,0.00013638,2]
[403130529,1769180036884,500.0,0.00013638,2]
[403130530,1769180036963,500.0,0.00013638,2]
[403130531,1769180037057,500.0,0.00013638,2]
[403130532,1769180037136,75.03560978,0.00013638,2]
[403130533,1769180037197,424.96439022,0.00013638,2]
[403130534,1769180037270,500.0,0.00013638,2]
[403130535,1769180037340,500.0,0.00013638,2]
[403130536,1769180037411,500.0,0.00013638,2]
[403130537,1769180037489,500.0,0.00013638,2]
[403130538,1769180037569,500.0,0.00013638,2]
[403130539,1769180037643,500.0,0.00013638,2]
[403130540,1769180037726,500.0,0.00013638,2]
[403130541,1769180037817,500.0,0.00013638,2]
[403130542,1769180037908,500.0,0.00013638,2]
[403130543,1769180038011,500.0,0.00013638,2]
[403130544,1769180038093,500.0,0.00013638,2]
[403130545,1769180038208,500.0,0.00013638,2]
[403130546,1769180038285,500.0,0.00013638,2]
[403130547,1769180038355,500.0,0.00013638,2]
[403130548,1769180038428,500.0,0.00013638,2]
[403130549,1769180038505,500.0,0.00013638,2]
[403130550,1769180038578,500.0,0.00013638,2]
[403130551,1769180038653,500.0,0.00013638,2]
[403130552,1769180038728,500.0,0.00013638,2]
[403130553,1769180038803,75.04560978,0.00013638,2]
[403130554,1769180038870,424.95439022,0.00013638,2]
[403130555,1769180038956,500.0,0.00013638,2]
[403130556,1769180039051,500.0,0.00013638,2]
[403130557,1769180039145,500.0,0.00013638,2]
[403130558,1769180039227,500.0,0.00013638,2]
[403130559,1769180039303,500.0,0.00013638,2]
[403130560,1769180039374,227.38539408,0.00013638,2]
[403130561,1769180039451,500.0,0.00013638,2]
[403130562,1769180039531,500.0,0.00013638,2]
[403130563,1769180042329,150.0,0.00013637,2]
[403130564,1769180042744,300.0,0.00013638,2]
[403130639,1769180051553,500.0,0.00013638,2]
[403130642,1769180051644,500.0,0.00013638,2]
[403130646,1769180051737,500.0,0.00013638,2]
[403130649,1769180051829,500.0,0.00013638,2]
[403130653,1769180051932,500.0,0.00013638,2]
[403130657,1769180052042,500.0,0.00013638,2]
[403130661,1769180052137,500.0,0.00013638,2]
[403130665,1769180052331,227.38539408,0.00013638,2]
[403130674,1769180083039,225.0,0.00016,10]
[403130675,1769180089529,780.75687505,0.00013539,2]
[403130676,1769180099053,889.52794657,0.00013539,2]
[403130677,1769180099113,7157.08313427,0.00013539,2]
[403130678,1769180101581,300.0,0.00013638,2]
[403130679,1769180101660,300.0,0.00013638,2]
[403130680,1769180101731,1200.0,0.00013638,2]
[403130686,1769180115759,169.0,0.00016,10]
[403130687,1769180143461,254.0,0.00018,30]
[403130688,1769180148761,242.32409415,0.00013638,2]
[403130689,1769180159929,339.75518162,0.00013539,2]
[403130691,1769180179716,254.0,0.00013639,2]
[403130699,1769180219757,206.84758996,0.00013539,2]
[403130700,1769180219834,1185.45564224,0.00013539,2]
[403130701,1769180221574,300.0,0.00013638,2]
[403130702,1769180222268,150.0,0.00013638,2]
[403130703,1769180222976,300.0,0.00013638,2]
[403130704,1769180226331,334.09693828,0.00013638,2]
[403130705,1769180232236,587.60488278,0.00013539,2]
[403130706,1769180234980,500.0,0.000176,30]
[403130707,1769180235408,500.0,0.000176,30]
[403130708,1769180236038,539.08779413,0.00013,2]
[403130709,1769180242551,500.0,0.00013638,2]
[403130710,1769180242657,500.0,0.00013638,2]
[403130711,1769180242754,500.0,0.00013638,2]
[403130712,1769180242850,500.0,0.00013638,2]
[403130713,1769180242951,500.0,0.00013638,2]
[403130714,1769180243049,500.0,0.00013638,2]
[403130715,1769180243145,500.0,0.00013638,2]
[403130716,1769180243241,500.0,0.00013638,2]
[403130717,1769180243343,500.0,0.00013638,2]
[403130718,1769180243609,500.0,0.00013638,2]
[403130719,1769180243709,500.0,0.00013638,2]
[403130720,1769180243809,500.0,0.00013638,2]
[403130721,1769180243902,500.0,0.00013638,2]
[403130722,1769180243999,103.76474257,0.00013638,2]
[403130723,1769180244083,396.23525743,0.00013638,2]
[403130724,1769180244183,500.0,0.00013638,2]
[403130725,1769180244293,500.0,0.00013638,2]
[403130726,1769180244402,500.0,0.00013638,2]
[403130727,1769180244502,500.0,0.00013638,2]
[403130728,1769180244606,500.0,0.00013638,2]
[403130729,1769180244725,500.0,0.00013638,2]
[403130730,1769180244895,500.0,0.00013638,2]
[403130731,1769180244999,273.00745453,0.00013638,2]
[403130732,1769180245096,500.0,0.00013638,2]
[403130733,1769180245211,500.0,0.00013638,2]
[403130734,1769180245321,500.0,0.00013638,2]
[403130735,1769180245421,500.0,0.00013638,2]
[403130743,1769180281525,2500.0,0.00013539,2]
[403130744,1769180281638,500.0,0.00013638,2]
[403130745,1769180281738,500.0,0.00013638,2]
[403130746,1769180281829,330.76728804,0.00013638,2]
[403130747,1769180281908,169.23271196,0.00013638,2]
[403130748,1769180282007,500.0,0.00013638,2]
[403130749,1769180282111,500.0,0.00013638,2]
[403130750,1769180282220,300.0,0.00013638,2]
[403130751,1769180313437,-10000.0,0.00013639,2]
[403130752,1769180314694,-10000.0,0.00013639,2]
[403130753,1769180315366,-10000.0,0.00013639,2]
[403130754,1769180315680,-10000.0,0.00013639,2]
[403130755,1769180316036,-10000.0,0.00013639,2]
[403130756,1769180316333,-10000.0,0.00013639,2]
[403130757,1769180316660,-10000.0,0.00013639,2]
[403130760,1769180317024,226.50345442,0.00013539,2]
[403130761,1769180317057,-10000.0,0.00013639,2]
[403130762,1769180317354,-10000.0,0.00013639,2]
[403130763,1769180318008,-10000.0,0.00013639,2]
[403130764,1769180318597,-10000.0,0.00013639,2]
[403130765,1769180319440,-10000.0,0.00013639,2]
[403130766,1769180319519,-10000.0,0.00013639,2]
[403130767,1769180320007,-10000.0,0.00013639,2]
[403130768,1769180320460,-10000.0,0.00013639,2]
[403130769,1769180320751,-10000.0,0.00013639,2]
[403130770,1769180321095,-10000.0,0.00013639,2]
[403130771,1769180321753,-10000.0,0.00013639,2]
[403130772,1769180321899,-10000.0,0.00013639,2]
[403130773,1769180322284,-10000.0,0.00013639,2]
[403130774,1769180322714,-10000.0,0.00013639,2]
[403130775,1769180323234,-10000.0,0.00013639,2]
[403130776,1769180323886,-10000.0,0.00013639,2]
[403130777,1769180324628,-10000.0,0.00013639,2]
[403130778,1769180325754,-10000.0,0.00013639,2]
[403130779,1769180326457,-10000.0,0.00013639,2]
[403130780,1769180327387,-10000.0,0.00013639,2]
[403130781,1769180327760,-10000.0,0.00013639,2]
[403130782,1769180328640,-10000.0,0.00013639,2]
[403130783,1769180329222,-10000.0,0.00013639,2]
[403130784,1769180329948,-10000.0,0.00013639,2]
[403130785,1769180330291,-10000.0,0.00013639,2]
[403130786,1769180331100,-10000.0,0.00013639,2]
[403130787,1769180331474,2000.0,0.000179,30]
[403130788,1769180332440,-10000.0,0.00013639,2]
[403130789,1769180335932,-10000.0,0.00013639,2]
[403130790,1769180341498,-300.0,0.00013638,2]
[403130794,1769180345487,-1326.91523726,0.00013639,2]
[403130795,1769180345751,-10000.01,0.00013639,2]
[403130796,1769180357196,-10000.0,0.00013639,2]
[403130797,1769180364315,216.49595169,0.00013638,2]
[403130798,1769180369025,546.980804,0.0001357,2]
[403130799,1769180371842,-5929.0,0.00013639,2]
[403130800,1769180373818,500.0,0.00013638,2]
[403130801,1769180373900,261.80612395,0.00013638,2]
[403130802,1769180379895,8474.72712036,0.00013639,2]
[403130803,1769180379959,1525.27287964,0.00013639,2]
[403130804,1769180380952,8474.73712036,0.00013539,2]
[403130805,1769180381012,10000.01,0.00013539,2]
[403130806,1769180381072,1321.52056173,0.00013539,2]
[403130807,1769180389450,8678.48943827,0.00013639,2]
[403130808,1769180389521,1321.51056173,0.00013639,2]
[403130809,1769180396775,1298.77405772,0.00013539,2]
[403130810,1769180398913,-564744.01476274,0.00013639,2]
[403130811,1769180398937,-1000.0,0.00013639,2]
[403130812,1769180398960,-1426.9227,0.00013639,2]
[403130813,1769180401274,287.0,0.00013638,2]
[403130814,1769180401346,1200.0,0.00013638,2]
[403130815,1769180401784,300.0,0.00013638,2]
[403130816,1769180402365,150.0,0.00013638,2]
[403130817,1769180403436,500.0,0.00013639,2]
[403130818,1769180403798,500.0,0.00013639,2]
[403130819,1769180404185,500.0,0.00013639,2]
[403130820,1769180404562,500.0,0.00013639,2]
[403130821,1769180408043,5179.542718,7.945e-05,2]
[403130822,1769180409372,-262.0,0.00013663,2]
[403130823,1769180409785,2500.0,0.00013539,2]
[403130831,1769180414665,6976.01,0.00013663,2]
[403130832,1769180414740,3023.99,0.00013663,2]
[403130833,1769180418766,500.0,0.00013638,2]
[403130834,1769180421926,227.30751694,0.00013638,2]
[403130835,1769180425272,222.04101513,0.00013638,2]
[403130837,1769180432896,500.0,0.00013638,2]
[403130838,1769180432999,500.0,0.00013638,2]
[403130839,1769180433094,547.48301785,0.00013638,2]
[403130840,1769180433200,500.0,0.00013638,2]
[403130842,1769180448076,7952.52698215,0.00013663,2]
[403130843,1769180448150,2047.47301785,0.00013663,2]
[403130849,1769180462035,-250.0,0.00013663,2]
[403130850,1769180462103,-551.83023748,0.00013698,2]
[403130853,1769180467547,229.48825,7.945e-05,2]
[403130854,1769180469427,2498.88,3.6e-07,2]
[403130855,1769180469588,500.0,0.00013698,2]
[403130856,1769180470536,500.0,0.00013698,2]
[403130857,1769180470787,507.04733674,0.00013698,2]
[403130858,1769180473545,4160.9339383,0.00013539,2]
[403130859,1769180473626,746.8623617,0.00013539,2]
[403130860,1769180474686,153.57713148,0.00013698,2]
[403130861,1769180474794,253.88810606,0.00013698,2]
[403130875,1769180506696,500.0,0.00013698,2]
[403130876,1769180506931,500.0,0.00013698,2]
[403130877,1769180507199,500.0,0.00013698,2]
[403130878,1769180512359,500.0,0.00013698,2]
[403130879,1769180512604,500.0,0.00013698,2]
[403130880,1769180512915,530.9816303,0.00013698,2]
[403130881,1769180518335,449.56068214,0.00013638,2]
[403130883,1769180525493,151.0,0.00013663,2]
[403130884,1769180525668,6368.46768756,0.00013539,2]
[403130885,1769180525747,10000.01,0.00013539,2]
[403130886,1769180525819,10000.01,0.00013539,2]
[403130887,1769180525889,10000.01,0.00013539,2]
[403130888,1769180525961,10000.01,0.00013539,2]
[403130889,1769180526031,10000.01,0.00013539,2]
[403130890,1769180526103,10000.01,0.00013539,2]
[403130891,1769180526172,10000.01,0.00013539,2]
[403130892,1769180526241,10000.01,0.00013539,2]
[403130893,1769180526321,10000.01,0.00013539,2]
[403130894,1769180526352,903631.44231244,0.00013539,2]
[403130896,1769180530568,2941.73,0.00013618,2]
[403130897,1769180535274,-151.0,0.00013663,2]